{"text_format":"1","workbook":"xlsx","n_sheets":3,"sheets":["Анкета","Лист1","Лист2"],"not_rendered":{"charts":0,"images":1,"macros":1,"external_links":0,"defined_names":4,"comments":1,"pivot_tables":0},"unopened":[],"bounds":{"document_bytes":16777216,"sheet_cells":100000,"rows_first":2000,"rows_last":500,"rows_between":2000,"halvings":0,"cell_chars":16384,"cell_head_chars":4096},"cells_cut":0,"cells_raw":0,"read":"whole","date_system":"1900"}

{"sheet":"Анкета","index":0,"n_rows":97,"n_cols":7,"rows_kept":97,"cut":false,"hidden":false,"merged":[[82,2,82,3],[83,2,83,3],[81,0,83,0],[89,1,89,3],[91,1,91,3],[84,2,84,3],[87,0,87,3],[41,2,41,3],[46,2,46,3],[56,2,56,3],[43,2,43,3],[47,2,47,3],[48,2,48,3],[49,2,49,3],[73,2,73,3],[78,2,78,3],[79,2,79,3],[81,2,81,3],[62,0,67,0],[77,2,77,3],[62,2,62,3],[74,2,74,3],[68,2,68,3],[50,0,55,0],[96,2,96,3],[80,0,80,3],[7,2,7,3],[17,0,18,0],[17,1,18,1],[56,0,61,0],[50,2,50,3],[18,2,18,3],[42,0,42,3],[44,2,44,3],[45,2,45,3],[68,0,72,0],[75,2,75,3],[76,2,76,3],[17,2,17,3],[15,2,15,3],[14,2,14,3],[13,2,13,3],[8,2,8,3],[8,0,11,0],[4,1,5,1],[3,0,3,3],[2,2,2,3],[4,2,4,3],[5,2,5,3],[40,2,40,3],[37,2,37,3],[37,0,40,0],[21,0,21,3],[22,2,22,3],[23,2,23,3],[24,2,24,3],[25,2,25,3],[1,0,1,3],[26,0,36,0],[26,2,36,3],[38,2,38,3],[39,2,39,3],[16,2,16,3],[9,2,9,3],[10,2,10,3],[11,2,11,3],[8,1,11,1],[12,2,12,3],[6,2,6,3],[2,0,2,1],[12,0,15,0],[12,1,15,1],[4,0,5,0]]}
[]
["Анкета инвестиционного проекта \nзаполняется для первоначальной оценки возможности получения займа Фонда развития моногородов \nв объеме от 10  до 250 млн рублей с предоставлением обеспечения в виде банковсковской гарантии.\nЗаполняются только желтые ячейки согласно требованиям к формату, все желтые ячейки должны быть заполнены"]
["АНКЕТА ИНВЕСТИЦИОННОГО ПРОЕКТА",null,"Заполняется инициатором проекта"]
["1. Общие сведения об инициаторе проекта"]
["1.1","Наименование, ИНН инициатора проекта (юридического лица или индивидуального предпринимателя)"]
[]
["1.2","Юридический адрес"]
["1.3","Фактический адрес (местонахождение)"]
["1.4 ","Руководитель инициатора проекта"]
[]
[]
[]
["1.5 ","Контактное лицо инициатора проекта"]
[]
[]
[]
["1.6","Наличие в Едином реестре малого и среднего предпринимательства www.nalog.ru"]
["1.7 ","Принадлежность инициатора проекта к группе компаний/холдингу (наименование при наличии)"]
[]
["1.8","Выручка инициатора (учредителя проектной компании) за последний отчетный период (год), млн. рублей"]
["1.9","Чистая прибыль инициатора/группы компаний за последний отчетный период (год), млн. рублей"]
["2. Соответствие инициатора и проекта требованиям Фонда развития моногородов (стоп-факторы)"]
["2.1","Отсутствие решения о ликвидации Инициатора Проекта, решения Арбитражного суда о признании Инициатора Проекта банкротом (или определения суда о возбуждении производства по делу о банкротстве) и об открытии конкурсного производства, решения о приостановлении деятельности Инициатора"]
["2.2","Инициатор не является российским юридическим лицом, в уставном (складочном) капитале которого доля участия иностранных юридических лиц, местом регистрации которых является государство или территория, включенные в утверждаемый Минфином России перечень государств и территорий, предоставляющих льготный налоговый режим налогообложения и (или) не предусматривающих раскрытия и предоставления информации при проведении финансовых операций (офшорные зоны) в отношении таких юридических лиц, в совокупности превышает 50 (пятьдесят) процентов"]
["2.3","У Инициатора отсутствует просроченная (неурегулированная) задолженность по налогам, сборам и иным обязательным платежам в бюджеты бюджетной системы Российской Федерации, в том числе в государственные внебюджетные фонды у инициатора по состоянию на дату подачи анкеты"]
["2.4","Отсутствие обязательств у инициатора по принятым судебным решениям или незаконченных судебным разбирательствам, в которых инициатор/группа выступает ответчиком, млн. рублей"]
["2.5","При реализации проекта не планируется ведение Инициатором проекта деятельности, разрешенной законодательством РФ и отнесенной в соответствии с ОКВЭД к какому-либо из следующих видов:"]
[null,"а. охота, отлов и отстрел диких животных, включая предоставление услуг в этих областях (подкласс 01.7 класса 01 раздела А);"]
[null,"б. производство табачных изделий (класс 12 раздела С);"]
[null,"в. производство алкогольной продукции (подклассы 11.01, 11.02, 11.03, 11.04, 11.05 класса 11 раздела С);"]
[null,"г. торговля оптовая и розничная (подклассы 45.1, 45.3 класса 45, класс 46, 47 раздела G), кроме торговли товарами собственного производства;"]
[null,"д. деятельность финансовая и страховая (раздел К);"]
[null,"е. государственное управление и обеспечение военной безопасности, социальное обеспечение (раздел О);"]
[null,"ж. деятельность по организации и проведению азартных игр и заключению пари, по организации и проведению лотерей (класс 92 раздела R);"]
[null,"з. деятельность общественных организаций (класс 94 раздела S);"]
[null,"и. деятельность домашних хозяйств как работодателей, недифференцированная деятельность частных домашних хозяйств по производству товаров и оказанию услуг для собственного потребления (раздел T);"]
[null,"к. деятельность экстерриториальных организаций и органов (раздел U)."]
["2.6","Связь с градообразующим предприятием:"]
[null,"инвестиционный проект не является инвестиционным проектом по реконструкции, техническому перевооружению, модернизации и (или) дооборудованию градообразующей организации монопрофильного муниципального образования (далее – моногород)"]
[null,"планируется ли, что ежегодная стоимость товаров (работ, услуг), приобретаемых у градообразующей организации моногорода, не будет превышать 50 процентов ежегодной стоимости всех товаров (работ, услуг), приобретаемых в целях реализации инвестиционного проекта"]
[null,"планируется ли, что  ежегодная выручка от реализации товаров (работ, услуг) градообразующей организации моногорода не будет превышать 50 процентов ежегодной выручки, получаемой от реализации товаров (работ, услуг), произведенных (выполненных, оказанных) в результате реализации инвестиционного проекта"]
["2.7","Проект осуществляется Инициатором в форме капитальных вложений   (выбрать вариант):"]
["3. Общие сведения о проекте"]
["3.1","Наименование субъекта Российской Федерации"]
["3.2","Наименование моногорода"]
["3.3","Адрес места реализации проекта, кадастровый номер земельного участка"]
["3.4","Наименование проекта"]
["3.5","Краткая характеристика проекта (включая направление деятельности, примерный перечень планируемых к созданию/модернизации объектов)"]
["3.6","Срок инвестиционой стадии проекта "]
["3.7","Планируемое количество создаваемых новых рабочих мест по списочной численности на момент реализации проекта, единиц"]
["3.8","Общая стоимость проекта (здесь и далее млн рублей с учетом НДС), в т.ч.:",{"$f":"IF(SUM(C52:C56)=0,\"\",SUM(C52:C56))","v":""},null,{"$f":"IF(OR(C51=\"\",C51=0),\"\",IF(C51<10,\"Общая стоимость проекта не может быть менее 10 млн. рублей\",\"\"))","v":""}]
[null,"- строительство/реконструкция  ",null,{"$f":"IFERROR(C52/$C$51,\"\")","v":""},{"$f":"IF(OR(C51=\"\",C51=0),\"\",IF(C51>250,\"Общая стоимость проекта не может быть более 250 млн. рублей\",\"\"))","v":""}]
[null,"- приобретение недвижимого имущества ",null,{"$f":"IFERROR(C53/$C$51,\"\")","v":""}]
[null,"- технологическое оборудование",null,""]
[null,"- транспортные средства и спецтехника",null,""]
[null,"- иное (указать при наличии)",null,""]
["3.9","Источники финансирования проекта, млн рублей",{"$f":"IF(C51=\"\",\"\",(IF(C51=SUM(C58:C62),\"\",\"Стоимоcть проекта отличается от необходимого объема финансирования\")))","v":""},null,{"$f":"IF(AND(C51=\"\",SUM(C58:C62)>0),\"Укажите объем финансирования проекта!\",\"\")","v":""}]
[null,"- Собственные средства инициатора (не менее 20% от стоимости проекта)",null,{"$f":"IFERROR(C58/SUM($C$58:$C$62),\"\")","v":""},{"$f":"IF(SUM($C$58:$C$62)=0,\"\",IF(D58<20%,\"Участие собственными средствами не менее 20%\",\"\"))","v":""}]
[null,"- Иных инвесторов/кредиторов (указать наименование при наличии)",null,{"$f":"IFERROR(C59/SUM($C$58:$C$62),\"\")","v":""}]
[null,"- Иных инвесторов/кредиторов (указать наименование при наличии)",null,""]
[null,"- Иных инвесторов/кредиторов (указать наименование при наличии)",null,""]
[null," - Фонд развития моногородов (не более 80% от стоимости проекта)",null,"",{"$f":"IF(C62=\"\",\"\",IF(D62>80%,\"Участие Фонда не более 80%\",\"\"))","v":""}]
["3.10","Объем вложенных средств, млн. рублей, в т.ч.:",{"$f":"IF(SUM(C64:C68)=0,\"\",SUM(C64:C68))","v":""}]
[null,"- строительство/реконструкция  ",null,{"$f":"IFERROR(C64/SUM($C$64:$C$68),\"\")","v":""}]
[null,"- приобретение недвижимого имущества ",null,{"$f":"IFERROR(C65/SUM($C$64:$C$68),\"\")","v":""}]
[null,"- технологическое оборудование",null,""]
[null,"- транспортные средства и спецтехника",null,""]
[null,"- иное (оборотные средства, иные затраты)",null,""]
["3.11","Затраты, планируемые к финансированию за счет средств Фонда, млн. руб.",{"$f":"IF((SUM(C70:C73)-C62)=0,\"\",\"Уточните использование займа Фонда \")","v":""}]
[null,"- строительство/реконструкция  ",null,{"$f":"IF(C70=\"\",\"\",IFERROR(C70/$C$62,\"\"))","v":""}]
[null,"- приобретение недвижимого имущества ",null,{"$f":"IF(C71=\"\",\"\",IFERROR(C71/$C$62,\"\"))","v":""}]
[null,"- технологическое оборудование",null,""]
[null,"- транспортные средства и спецтехника",null,""]
["3.12","Запрашиваемый срок участия Фонда в проекте, лет (не более 15 лет)"]
["3.13","Наличие бизнес-плана проекта"]
["3.14","Наличие финансовой модели проекта"]
["3.15","Наличие недвижимого имущества (земельного участка/здания/помещения (помещений) для реализации проекта (если требуется)",null,null,null,{"$f":"C62*5%/2+C62","v":0},{"$f":"SUM(#REF!)","v":{"$error":"#REF!"}}]
["3.16","Наличие проектно-сметной документации"]
["3.17","Наличие экспертизы проектной документации"]
["3.18","Наличие (планы по получению) государственной поддержки, в том числе безвозмездная поддержка, привлечение заемных средств от государственных (муниципальных) институтов развития, государственные (муниципальные) гарантии, льготы и преференции, иные формы поддержки"]
["4. Информация о банковской гарантии"]
["4.1.","Наименование банка"]
[null,"Планируемая сумма банковской гарантии (млн. руб.)",null,null,{"$f":"IF($C$83<$C$62,\"Менее размера участия Фонда!\",\"\")","v":""}]
[null,"Планируемый срок банковской гарантии, лет",null,null,{"$f":"IF($C$84<$C$74,\"Менее срока займа Фонда!\",\"\")","v":""}]
["4.2","Статус оформления банковской гарантии "]
[]
["Дополнительная информация, указываемая по усмотрению Инициатора в свободной форме"]
[]
[]
[null,"Анкета заполняется Инициатором проекта в формате Excel, после заполнения документ должен быть распечатан и подписан руководителем организации Инициатора проекта и направляется сопроводительным письмом в Фонд развития моногородов"]
[]
[null,"Инициатор проекта несет ответственность за полноту и достоверность указанной в анкете информации. В случае выявления недостоверности инициатору может быть отказано в рассмотрении инвестиционного проекта"]
[]
[null,"______________________________","_______________","_______________"]
[null,"должность","подпись","ФИО"]
[]
[null,null,"Дата заполнения"]

{"sheet":"Лист1","index":1,"n_rows":320,"n_cols":4,"rows_kept":320,"cut":false,"hidden":true,"merged":[]}
["Субъект Российской Федерации","Административный центр монопрофильного муниципального образования",null,"Регионы"]
["Алтайский край","г. Яровое",null,"Алтайский край"]
["Алтайский край","г. Заринск",null,"Амурская область"]
["Алтайский край","г. Алейск",null,"Архангельская область"]
["Алтайский край","г. Новоалтайск",null,"Белгородская область"]
["Алтайский край","пос. Степное Озеро",null,"Брянская область"]
["Амурская область","г. Райчихинск",null,"Владимирская область"]
["Амурская область","г. Свободный",null,"Волгоградская область"]
["Амурская область","г. Тында",null,"Вологодская область"]
["Амурская область","г. Белогорск",null,"Воронежская область"]
["Архангельская область","пос. Кизема",null,"Еврейская автономная область"]
["Архангельская область","г. Онега",null,"Забайкальский край"]
["Архангельская область","пос. Октябрьский",null,"Ивановская область"]
["Архангельская область","г. Коряжма",null,"Иркутская область"]
["Архангельская область","г. Новодвинск",null,"Калужская область"]
["Архангельская область","пос. Североонежск",null,"Карачаево-Черкесская Республика"]
["Архангельская область","г. Северодвинск",null,"Кемеровская область"]
["Белгородская область","г. Губкин",null,"Кировская область"]
["Брянская область","пос. Белая Березка",null,"Костромская область"]
["Брянская область","пос. Бытошь",null,"Красноярский край"]
["Брянская область","пос. Ивот",null,"Курганская область"]
["Брянская область","пос. Любохна",null,"Курская область"]
["Брянская область","г. Сураж",null,"Ленинградская область"]
["Брянская область","г. Фокино",null,"Липецкая область"]
["Брянская область","г. Карачев",null,"Мурманская область"]
["Брянская область","пос. Погар",null,"Нижегородская область"]
["Брянская область","г. Клинцы",null,"Новгородская область"]
["Брянская область","г. Сельцо",null,"Новосибирская область"]
["Владимирская область","г. Гороховец",null,"Омская область"]
["Владимирская область","г. Камешково",null,"Оренбургская область"]
["Владимирская область","г. Курлово",null,"Орловская область"]
["Владимирская область","г. Меленки",null,"Пензенская область"]
["Владимирская область","г. Вязники",null,"Пермский край"]
["Владимирская область","г. Кольчугино",null,"Приморский край"]
["Владимирская область","пос. Ставрово",null,"Республика Башкортостан"]
["Волгоградская область","г. Михайловка",null,"Республика Бурятия"]
["Волгоградская область","г. Фролово",null,"Республика Дагестан"]
["Вологодская область","г. Красавино",null,"Республика Карелия"]
["Вологодская область","пос. Сазоново",null,"Республика Коми"]
["Вологодская область","г. Череповец",null,"Республика Крым"]
["Вологодская область","г. Сокол",null,"Республика Мордовия"]
["Воронежская область","пос. Елань-Коленовский",null,"Республика Саха (Якутия)"]
["Воронежская область","г. Семилуки",null,"Республика Татарстан"]
["Воронежская область","г. Павловск",null,"Республика Хакасия"]
["Воронежская область","г. Россошь",null,"Ростовская область"]
["Еврейская автономная область","пос. Теплоозерск",null,"Рязанская область"]
["Забайкальский край","пос. Жирекен",null,"Самарская область"]
["Забайкальский край","пос. Новоорловск",null,"Саратовская область"]
["Забайкальский край","пос. Первомайский",null,"Свердловская область"]
["Забайкальский край","г. Краснокаменск",null,"Смоленская область"]
["Забайкальский край","пос. Новопавловка",null,"Ставропольский край"]
["Забайкальский край","пос. Вершино-Дарасунский",null,"Тамбовская область"]
["Забайкальский край","пос. Шерловая Гора",null,"Тверская область"]
["Забайкальский край","пос. Кокуй",null,"Томская область"]
["Ивановская область","пос. Петровский",null,"Тульская область"]
["Ивановская область","пос. Каменка",null,"Удмуртская Республика"]
["Ивановская область","пос. Савино",null,"Ульяновская область"]
["Ивановская область","г. Южа",null,"Хабаровский край"]
["Ивановская область","г. Наволоки",null,"Челябинская область"]
["Ивановская область","пос. Колобово",null,"Чувашская Республика"]
["Ивановская область","г. Вичуга",null,"Чукотский автономный округ"]
["Ивановская область","г. Приволжск",null,"Ярославская область"]
["Ивановская область","г. Фурманов"]
["Ивановская область","г. Тейково"]
["Иркутская область","г. Байкальск"]
["Иркутская область","г. Усолье-Сибирское"]
["Иркутская область","г. Тулун"]
["Иркутская область","г. Черемхово"]
["Иркутская область","г. Саянск"]
["Иркутская область","г. Усть-Илимск"]
["Иркутская область","г. Железногорск-Илимский"]
["Иркутская область","г. Шелехов"]
["Калужская область","г. Сосенский"]
["Калужская область","г. Кондрово"]
["Карачаево-Черкесская Республика","пос. Медногорский"]
["Кемеровская область","г. Анжеро-Судженск"]
["Кемеровская область","г. Калтан"]
["Кемеровская область","пос. Мундыбаш"]
["Кемеровская область","г. Юрга"]
["Кемеровская область","г. Таштагол"]
["Кемеровская область","г. Осинники"]
["Кемеровская область","пос. Шерегеш"]
["Кемеровская область","г. Новокузнецк"]
["Кемеровская область","г. Гурьевск"]
["Кемеровская область","г. Салаир"]
["Кемеровская область","г. Мариинск"]
["Кемеровская область","г. Топки"]
["Кемеровская область","пос. Яшкино"]
["Кемеровская область","г. Мыски"]
["Кемеровская область","г. Березовский"]
["Кемеровская область","г. Тайга"]
["Кемеровская область","г. Полысаево"]
["Кемеровская область","пос. Белогорск"]
["Кемеровская область","г. Прокопьевск"]
["Кемеровская область","г. Киселевск"]
["Кемеровская область","г. Междуреченск"]
["Кемеровская область","г. Ленинск-Кузнецкий"]
["Кемеровская область","г. Белово"]
["Кемеровская область","пос. Краснобродский"]
["Кировская область","г. Вятские Поляны"]
["Кировская область","пос. Мурыгино"]
["Кировская область","г. Белая Холуница"]
["Кировская область","г. Луза"]
["Кировская область","г. Кирс"]
["Кировская область","пос. Демьяново"]
["Кировская область","г. Уржум"]
["Кировская область","пос. Красная Поляна"]
["Кировская область","г. Омутнинск"]
["Кировская область","пос. Стрижи"]
["Кировская область","г. Кирово-Чепецк"]
["Костромская область","г. Мантурово"]
["Костромская область","г. Галич"]
["Красноярский край","г. Бородино"]
["Красноярский край","г. Зеленогорск"]
["Красноярский край","г. Норильск"]
["Красноярский край","г. Железногорск"]
["Красноярский край","г. Лесосибирск"]
["Курганская область","г. Катайск"]
["Курганская область","г. Петухово"]
["Курганская область","г. Далматово"]
["Курганская область","пос. Варгаши"]
["Курская область","г. Железногорск"]
["Ленинградская область","г. Пикалево"]
["Ленинградская область","г. Сланцы"]
["Ленинградская область","г. Сясьстрой"]
["Липецкая область","г. Лебедянь"]
["Мурманская область","г. Кировск"]
["Мурманская область","г. Ковдор"]
["Мурманская область","пос. Ревда"]
["Мурманская область","пос. Никель"]
["Мурманская область","г. Мончегорск"]
["Мурманская область","г. Заполярный"]
["Мурманская область","г. Оленегорск"]
["Нижегородская область","г. Заволжье"]
["Нижегородская область","пос. Мухтолово"]
["Нижегородская область","г. Навашино"]
["Нижегородская область","г. Кулебаки"]
["Нижегородская область","г. Ворсма"]
["Нижегородская область","г. Первомайск"]
["Нижегородская область","г. Павлово"]
["Нижегородская область","г. Володарск"]
["Нижегородская область","г. Княгинино"]
["Нижегородская область","пос. Решетиха"]
["Нижегородская область","г. Балахна"]
["Нижегородская область","г. Выкса"]
["Новгородская область","пос. Краснофарфорный"]
["Новгородская область","г. Пестово"]
["Новгородская область","пос. Парфино"]
["Новгородская область","г. Боровичи"]
["Новгородская область","пос. Угловка"]
["Новосибирская область","пос. Линево"]
["Новосибирская область","пос. Горный"]
["Омская область","пос. Красный Яр"]
["Оренбургская область","г. Новотроицк"]
["Оренбургская область","г. Кувандык"]
["Оренбургская область","пос. Светлый"]
["Оренбургская область","г. Медногорск"]
["Оренбургская область","г. Гай"]
["Оренбургская область","г. Соль-Илецк"]
["Оренбургская область","г. Ясный"]
["Орловская область","г. Мценск"]
["Пензенская область","г. Сердобск"]
["Пензенская область","г. Никольск"]
["Пензенская область","пос. Мокшан"]
["Пензенская область","г. Заречный"]
["Пермский край","г. Красновишерск"]
["Пермский край","г. Очер"]
["Пермский край","пос. Теплая Гора"]
["Пермский край","г. Чусовой"]
["Пермский край","г. Нытва"]
["Пермский край","пос. Уральский"]
["Пермский край","г. Александровск"]
["Пермский край","пос. Пашия"]
["Пермский край","г. Горнозаводск"]
["Пермский край","пос. Юго-Камский"]
["Приморский край","г. Дальнегорск"]
["Приморский край","с. Светлогорье"]
["Приморский край","пос. Ярославский"]
["Приморский край","пос. Восток"]
["Приморский край","г. Спасск-Дальний"]
["Приморский край","пос. Лучегорск"]
["Приморский край","г. Арсеньев"]
["Приморский край","пос. Новошахтинский"]
["Приморский край","пос. Липовцы"]
["Республика Башкортостан","г. Белебей"]
["Республика Башкортостан","г. Кумертау"]
["Республика Башкортостан","г. Белорецк"]
["Республика Башкортостан","г. Нефтекамск"]
["Республика Башкортостан","г. Учалы"]
["Республика Башкортостан","г. Благовещенск"]
["Республика Бурятия","пос. Селенгинск"]
["Республика Бурятия","пос. Каменск"]
["Республика Бурятия","г. Гусиноозерск"]
["Республика Бурятия","г. Северобайкальск"]
["Республика Бурятия","пос. Саган-Нур"]
["Республика Бурятия","г. Закаменск"]
["Республика Дагестан","г. Каспийск"]
["Республика Дагестан","г. Дагестанские Огни"]
["Республика Карелия","г. Суоярви"]
["Республика Карелия","г. Кондопога"]
["Республика Карелия","пос. Муезерский"]
["Республика Карелия","пос. Надвоицы"]
["Республика Карелия","г. Питкяранта"]
["Республика Карелия","г. Пудож"]
["Республика Карелия","г. Сегежа"]
["Республика Карелия","пос. Пиндуши"]
["Республика Карелия","г. Костомукша"]
["Республика Карелия","г. Лахденпохья"]
["Республика Карелия","пос. Вяртсиля"]
["Республика Коми","г. Емва"]
["Республика Коми","г. Инта"]
["Республика Коми","пос. Жешарт"]
["Республика Коми","г. Воркута"]
["Республика Крым","г. Красноперекопск"]
["Республика Крым","г. Армянск"]
["Республика Мордовия","пос. Умет"]
["Республика Мордовия","г. Рузаевка"]
["Республика Мордовия","пос. Кадошкино"]
["Республика Мордовия","пос. Тургенево"]
["Республика Мордовия","пос. Комсомольский"]
["Республика Мордовия","пос. Атяшево"]
["Республика Саха (Якутия)","г. Удачный"]
["Республика Саха (Якутия)","г. Нерюнгри"]
["Республика Саха (Якутия)","пос. Айхал"]
["Республика Саха (Якутия)","пос. Нижний Куранах"]
["Республика Саха (Якутия)","пос. Мохсоголлох"]
["Республика Саха (Якутия)","г. Мирный"]
["Республика Татарстан","г. Зеленодольск"]
["Республика Татарстан","г. Набережные Челны"]
["Республика Татарстан","пос. Камские Поляны"]
["Республика Татарстан","г. Елабуга"]
["Республика Татарстан","г. Менделеевск"]
["Республика Татарстан","г. Чистополь"]
["Республика Татарстан","г. Нижнекамск"]
["Республика Хакасия","с. Туим"]
["Республика Хакасия","г. Абаза"]
["Республика Хакасия","пос. Вершина Теи"]
["Республика Хакасия","г. Саяногорск"]
["Республика Хакасия","г. Сорск"]
["Республика Хакасия","г. Черногорск"]
["Ростовская область","г. Гуково"]
["Ростовская область","г. Зверево"]
["Ростовская область","г. Донецк"]
["Рязанская область","пос. Побединка"]
["Рязанская область","пос. Елатьма"]
["Рязанская область","пос. Лесной"]
["Самарская область","г. Тольятти"]
["Самарская область","г. Чапаевск"]
["Саратовская область","г. Петровск"]
["Саратовская область","г. Вольск"]
["Свердловская область","г. Североуральск"]
["Свердловская область","г. Красноуральск"]
["Свердловская область","г. Качканар"]
["Свердловская область","г. Верхняя Пышма"]
["Свердловская область","г. Асбест"]
["Свердловская область","г. Нижний Тагил"]
["Свердловская область","г. Верхняя Салда"]
["Свердловская область","г. Серов"]
["Свердловская область","г. Ревда"]
["Свердловская область","г. Полевской"]
["Свердловская область","пос. Малышева"]
["Свердловская область","г. Волчанск"]
["Свердловская область","г. Первоуральск"]
["Свердловская область","г. Карпинск"]
["Свердловская область","г. Краснотурьинск"]
["Свердловская область","г. Верхняя Тура"]
["Свердловская область","г. Каменск-Уральский"]
["Смоленская область","г. Дорогобуж"]
["Ставропольский край","г. Невинномысск"]
["Тамбовская область","г. Котовск"]
["Тамбовская область","пос. Знаменка"]
["Тверская область","пос. Великооктябрьский"]
["Тверская область","г. Кувшиново"]
["Тверская область","пос. Жарковский"]
["Тверская область","пос. Спирово"]
["Тверская область","г. Западная Двина"]
["Тверская область","пос. Калашниково"]
["Тверская область","г. Удомля"]
["Томская область","г. Северск"]
["Тульская область","г. Алексин"]
["Тульская область","г. Ефремов"]
["Тульская область","г. Белев"]
["Тульская область","пос. Первомайский"]
["Тульская область","г. Суворов"]
["Удмуртская Республика","г. Сарапул"]
["Удмуртская Республика","г. Воткинск"]
["Удмуртская Республика","г. Глазов"]
["Ульяновская область","г. Димитровград"]
["Ульяновская область","г. Новоульяновск"]
["Ульяновская область","г. Инза"]
["Ульяновская область","пос. Силикатный"]
["Хабаровский край","пос. Чегдомын"]
["Хабаровский край","пос. Эльбан"]
["Челябинская область","г. Усть-Катав"]
["Челябинская область","г. Карабаш"]
["Челябинская область","г. Нязепетровск"]
["Челябинская область","г. Аша"]
["Челябинская область","г. Миньяр"]
["Челябинская область","г. Верхний Уфалей"]
["Челябинская область","г. Сим"]
["Челябинская область","г. Чебаркуль"]
["Челябинская область","г. Озерск"]
["Челябинская область","г. Трехгорный"]
["Челябинская область","г. Снежинск"]
["Челябинская область","г. Бакал"]
["Челябинская область","г. Сатка"]
["Челябинская область","г. Миасс"]
["Челябинская область","г. Златоуст"]
["Челябинская область","г. Магнитогорск"]
["Чувашская Республика","г. Канаш"]
["Чувашская Республика","г. Мариинский Посад"]
["Чувашская Республика","г. Алатырь"]
["Чувашская Республика","г. Шумерля"]
["Чувашская Республика","г. Новочебоксарск"]
["Чукотский автономный округ","пос. Беринговский"]
["Чукотский автономный округ","г. Певек"]
["Ярославская область","пос. Песочное"]
["Ярославская область","г. Гаврилов-Ям"]
["Ярославская область","г. Тутаев"]
["Ярославская область","г. Ростов"]

{"sheet":"Лист2","index":2,"n_rows":322,"n_cols":20,"rows_kept":322,"cut":false,"hidden":true,"merged":[]}
[null,null,null,null,null,null,null,null,null,null,null,"- иные капитальные вложения",null,null,null,null,null,null,null,"- иное (указать при наличии)"]
[null,null,null,"Участок","Срок",null,null,null,null,null,null,null,null,null,null,null,null,null,null,"- банк 1"]
[null,"Да",null,null,null,null,null,null,null,null,null,null,null,null,null,null,null,null,null,"- инвестиционная компания 1"]
[null,"Нет",null,"Собственность",1,null,null,"г. Абаза","Алтайский край",null,null,"Да, не является",null,null,null,null,null,null,null,"-иное (указать)"]
[null,"Не требуется",null,"Аренда",2,null,null,"г. Алатырь","Амурская область",null,null,null,null,null,null,null,null,null,null,"- Иных инвесторов/кредиторов (указать наименование при наличии)"]
[null,"Заключен договор на разработку",null,"Участок не определен",3,null,null,"г. Алейск","Архангельская область",null,null,"Да, не превышает"]
[null,null,null,"Участок определен, права не оформлены",4,null,null,"г. Александровск","Белгородская область"]
[null,null,null,null,5,null,null,"г. Алексин","Брянская область",null,null,"- недвижимое имущество",null,null,null,null,"0,7"]
[null,null,null,null,6,null,null,"г. Анжеро-Судженск","Владимирская область",null,null,"- оборудование",null,null,null,null,"0,5"]
[null,null,null,null,7,null,null,"г. Армянск","Волгоградская область",null,null,"- банковская гарантия (указать банк)",null,null,null,null,"1"]
[null,null,null,null,8,null,null,"г. Арсеньев","Вологодская область",null,null,"- гарантия АО \"Корпорация \"МСП\"",null,null,null,null,"1"]
[null,null,null,null,null,null,null,"г. Асбест","Воронежская область",null,null,"- приобретаемое имущество в рамках проекта"]
[null,null,null,null,null,null,null,"г. Аша","Еврейская автономная область",null,null,"- залог ценных бумаг",null,null,null,null,"1"]
[null,"Да",null,null,null,null,null,"г. Байкальск","Забайкальский край",null,null,"- иное (указать при наличии)"]
[null,"Нет",null,null,null,null,null,"г. Бакал","Ивановская область"]
[null,"Разрабатывается с привлечением внешних экспертов",null,null,null,null,null,"г. Балахна","Иркутская область"]
[null,"Разрабатывается собственными силами",null,null,null,null,null,"г. Белая Холуница","Калужская область",null,null,"Является"]
[null,null,null,null,null,null,null,"г. Белебей","Карачаево-Черкесская Республика",null,null,"Не является"]
[null,null,null,null,null,null,null,"г. Белев","Кемеровская область"]
[null,"Да",null,null,null,null,null,"г. Белово","Кировская область",null,null,"Планируется"]
[null,"Нет",null,null,null,null,null,"г. Белогорск","Костромская область",null,null,"Не планируется"]
[null,"Концепция одобрена",null,null,null,null,null,"г. Белорецк","Красноярский край"]
[null,null,null,null,null,null,null,"г. Березовский","Курганская область",null,null,"на участке территории в границах моногорода"]
[null,null,null,null,null,null,null,"г. Благовещенск","Курская область",null,null,"на прилегающих к границам моногорода участках территории в границах промышленного, индустриального, технологического или агропромышленного парка"]
[null,null,null,null,null,null,null,"г. Боровичи","Ленинградская область",null,null,"часть производственных мощностей расположена за пределами территории моногорода, но является составляющей единого роизводственного процесса, направленного на достижение общего экономического результата"]
[null,null,null,null,null,null,null,"г. Бородино","Липецкая область"]
[null,"Да",null,"Получено заключение государственной экспертизы",null,null,null,"г. Верхний Уфалей","Мурманская область"]
[null,"Нет",null,"Получено заключение негосударственной экспертизы",null,null,null,"г. Верхняя Пышма","Нижегородская область",null,null,"переговоры"]
[null,"Не требуется",null,"Нет",null,null,null,"г. Верхняя Салда","Новгородская область",null,null,"прохождение процедур рассмотрения "]
[null,"Экспертиза проводится",null,"Не требуется",null,null,null,"г. Верхняя Тура","Новосибирская область",null,null,"оферта"]
[null,null,null,"Государственная экспертиза проводится",null,null,null,"г. Вичуга","Омская область",null,null,"выдана"]
[null,null,null,"Негосударственная экспертиза проводится",null,null,null,"г. Володарск","Оренбургская область"]
[null,null,null,null,null,null,null,"г. Волчанск","Орловская область"]
[null,null,null,null,null,null,null,"г. Вольск","Пензенская область"]
[null,null,null,null,null,null,null,"г. Воркута","Пермский край"]
[null,null,null,null,null,null,null,"г. Ворсма","Приморский край"]
[null,null,null,null,null,null,null,"г. Воткинск","Республика Башкортостан"]
[null,null,null,null,null,null,null,"г. Выкса","Республика Бурятия"]
[null,null,null,null,null,null,null,"г. Вязники","Республика Дагестан"]
[null,null,null,null,null,null,null,"г. Вятские Поляны","Республика Карелия"]
[null,null,null,null,null,null,null,"г. Гаврилов-Ям","Республика Коми"]
[null,null,null,null,null,null,null,"г. Гай","Республика Крым"]
[null,null,null,null,null,null,null,"г. Галич","Республика Мордовия"]
[null,null,null,null,null,null,null,"г. Глазов","Республика Саха (Якутия)"]
[null,null,null,null,null,null,null,"г. Горнозаводск","Республика Татарстан"]
[null,null,null,null,null,null,null,"г. Гороховец","Республика Хакасия"]
[null,null,null,null,null,null,null,"г. Губкин","Ростовская область"]
[null,null,null,null,null,null,null,"г. Гуково","Рязанская область"]
[null,null,null,null,null,null,null,"г. Гурьевск","Самарская область"]
[null,null,null,null,null,null,null,"г. Гусиноозерск","Саратовская область"]
[null,null,null,null,null,null,null,"г. Дагестанские Огни","Свердловская область"]
[null,null,null,null,null,null,null,"г. Далматово","Смоленская область"]
[null,null,null,null,null,null,null,"г. Дальнегорск","Ставропольский край"]
[null,null,null,null,null,null,null,"г. Димитровград","Тамбовская область"]
[null,null,null,null,null,null,null,"г. Донецк","Тверская область"]
[null,null,null,null,null,null,null,"г. Дорогобуж","Томская область"]
[null,null,null,null,null,null,null,"г. Елабуга","Тульская область"]
[null,null,null,null,null,null,null,"г. Емва","Удмуртская Республика"]
[null,null,null,null,null,null,null,"г. Ефремов","Ульяновская область"]
[null,null,null,null,null,null,null,"г. Железногорск","Хабаровский край"]
[null,null,null,null,null,null,null,"г. Железногорск","Челябинская область"]
[null,null,null,null,null,null,null,"г. Железногорск-Илимский","Чувашская Республика"]
[null,null,null,null,null,null,null,"г. Заволжье","Чукотский автономный округ"]
[null,null,null,null,null,null,null,"г. Закаменск","Ярославская область"]
[null,null,null,null,null,null,null,"г. Западная Двина"]
[null,null,null,null,null,null,null,"г. Заполярный"]
[null,null,null,null,null,null,null,"г. Заречный"]
[null,null,null,null,null,null,null,"г. Заринск"]
[null,null,null,null,null,null,null,"г. Зверево"]
[null,null,null,null,null,null,null,"г. Зеленогорск"]
[null,null,null,null,null,null,null,"г. Зеленодольск"]
[null,null,null,null,null,null,null,"г. Златоуст"]
[null,null,null,null,null,null,null,"г. Инза"]
[null,null,null,null,null,null,null,"г. Инта"]
[null,null,null,null,null,null,null,"г. Калтан"]
[null,null,null,null,null,null,null,"г. Каменск-Уральский"]
[null,null,null,null,null,null,null,"г. Камешково"]
[null,null,null,null,null,null,null,"г. Канаш"]
[null,null,null,null,null,null,null,"г. Карабаш"]
[null,null,null,null,null,null,null,"г. Карачев"]
[null,null,null,null,null,null,null,"г. Карпинск"]
[null,null,null,null,null,null,null,"г. Каспийск"]
[null,null,null,null,null,null,null,"г. Катайск"]
[null,null,null,null,null,null,null,"г. Качканар"]
[null,null,null,null,null,null,null,"г. Кирово-Чепецк"]
[null,null,null,null,null,null,null,"г. Кировск"]
[null,null,null,null,null,null,null,"г. Кирс"]
[null,null,null,null,null,null,null,"г. Киселевск"]
[null,null,null,null,null,null,null,"г. Клинцы"]
[null,null,null,null,null,null,null,"г. Княгинино"]
[null,null,null,null,null,null,null,"г. Ковдор"]
[null,null,null,null,null,null,null,"г. Кольчугино"]
[null,null,null,null,null,null,null,"г. Кондопога"]
[null,null,null,null,null,null,null,"г. Кондрово"]
[null,null,null,null,null,null,null,"г. Коряжма"]
[null,null,null,null,null,null,null,"г. Костомукша"]
[null,null,null,null,null,null,null,"г. Котовск"]
[null,null,null,null,null,null,null,"г. Красавино"]
[null,null,null,null,null,null,null,"г. Красновишерск"]
[null,null,null,null,null,null,null,"г. Краснокаменск"]
[null,null,null,null,null,null,null,"г. Красноперекопск"]
[null,null,null,null,null,null,null,"г. Краснотурьинск"]
[null,null,null,null,null,null,null,"г. Красноуральск"]
[null,null,null,null,null,null,null,"г. Кувандык"]
[null,null,null,null,null,null,null,"г. Кувшиново"]
[null,null,null,null,null,null,null,"г. Кулебаки"]
[null,null,null,null,null,null,null,"г. Кумертау"]
[null,null,null,null,null,null,null,"г. Курлово"]
[null,null,null,null,null,null,null,"г. Лахденпохья"]
[null,null,null,null,null,null,null,"г. Лебедянь"]
[null,null,null,null,null,null,null,"г. Ленинск-Кузнецкий"]
[null,null,null,null,null,null,null,"г. Лесосибирск"]
[null,null,null,null,null,null,null,"г. Луза"]
[null,null,null,null,null,null,null,"г. Магнитогорск"]
[null,null,null,null,null,null,null,"г. Мантурово"]
[null,null,null,null,null,null,null,"г. Мариинск"]
[null,null,null,null,null,null,null,"г. Мариинский Посад"]
[null,null,null,null,null,null,null,"г. Медногорск"]
[null,null,null,null,null,null,null,"г. Междуреченск"]
[null,null,null,null,null,null,null,"г. Меленки"]
[null,null,null,null,null,null,null,"г. Менделеевск"]
[null,null,null,null,null,null,null,"г. Миасс"]
[null,null,null,null,null,null,null,"г. Миньяр"]
[null,null,null,null,null,null,null,"г. Мирный"]
[null,null,null,null,null,null,null,"г. Михайловка"]
[null,null,null,null,null,null,null,"г. Мончегорск"]
[null,null,null,null,null,null,null,"г. Мценск"]
[null,null,null,null,null,null,null,"г. Мыски"]
[null,null,null,null,null,null,null,"г. Набережные Челны"]
[null,null,null,null,null,null,null,"г. Навашино"]
[null,null,null,null,null,null,null,"г. Наволоки"]
[null,null,null,null,null,null,null,"г. Невинномысск"]
[null,null,null,null,null,null,null,"г. Нерюнгри"]
[null,null,null,null,null,null,null,"г. Нефтекамск"]
[null,null,null,null,null,null,null,"г. Нижнекамск"]
[null,null,null,null,null,null,null,"г. Нижний Тагил"]
[null,null,null,null,null,null,null,"г. Никольск"]
[null,null,null,null,null,null,null,"г. Новоалтайск"]
[null,null,null,null,null,null,null,"г. Новодвинск"]
[null,null,null,null,null,null,null,"г. Новокузнецк"]
[null,null,null,null,null,null,null,"г. Новотроицк"]
[null,null,null,null,null,null,null,"г. Новоульяновск"]
[null,null,null,null,null,null,null,"г. Новочебоксарск"]
[null,null,null,null,null,null,null,"г. Норильск"]
[null,null,null,null,null,null,null,"г. Нытва"]
[null,null,null,null,null,null,null,"г. Нязепетровск"]
[null,null,null,null,null,null,null,"г. Озерск"]
[null,null,null,null,null,null,null,"г. Оленегорск"]
[null,null,null,null,null,null,null,"г. Омутнинск"]
[null,null,null,null,null,null,null,"г. Онега"]
[null,null,null,null,null,null,null,"г. Осинники"]
[null,null,null,null,null,null,null,"г. Очер"]
[null,null,null,null,null,null,null,"г. Павлово"]
[null,null,null,null,null,null,null,"г. Павловск"]
[null,null,null,null,null,null,null,"г. Певек"]
[null,null,null,null,null,null,null,"г. Первомайск"]
[null,null,null,null,null,null,null,"г. Первоуральск"]
[null,null,null,null,null,null,null,"г. Пестово"]
[null,null,null,null,null,null,null,"г. Петровск"]
[null,null,null,null,null,null,null,"г. Петухово"]
[null,null,null,null,null,null,null,"г. Пикалево"]
[null,null,null,null,null,null,null,"г. Питкяранта"]
[null,null,null,null,null,null,null,"г. Полевской"]
[null,null,null,null,null,null,null,"г. Полысаево"]
[null,null,null,null,null,null,null,"г. Приволжск"]
[null,null,null,null,null,null,null,"г. Прокопьевск"]
[null,null,null,null,null,null,null,"г. Пудож"]
[null,null,null,null,null,null,null,"г. Райчихинск"]
[null,null,null,null,null,null,null,"г. Ревда"]
[null,null,null,null,null,null,null,"г. Россошь"]
[null,null,null,null,null,null,null,"г. Ростов"]
[null,null,null,null,null,null,null,"г. Рузаевка"]
[null,null,null,null,null,null,null,"г. Салаир"]
[null,null,null,null,null,null,null,"г. Сарапул"]
[null,null,null,null,null,null,null,"г. Сатка"]
[null,null,null,null,null,null,null,"г. Саяногорск"]
[null,null,null,null,null,null,null,"г. Саянск"]
[null,null,null,null,null,null,null,"г. Свободный"]
[null,null,null,null,null,null,null,"г. Северобайкальск"]
[null,null,null,null,null,null,null,"г. Северодвинск"]
[null,null,null,null,null,null,null,"г. Североуральск"]
[null,null,null,null,null,null,null,"г. Северск"]
[null,null,null,null,null,null,null,"г. Сегежа"]
[null,null,null,null,null,null,null,"г. Сельцо"]
[null,null,null,null,null,null,null,"г. Семилуки"]
[null,null,null,null,null,null,null,"г. Сердобск"]
[null,null,null,null,null,null,null,"г. Серов"]
[null,null,null,null,null,null,null,"г. Сим"]
[null,null,null,null,null,null,null,"г. Сланцы"]
[null,null,null,null,null,null,null,"г. Снежинск"]
[null,null,null,null,null,null,null,"г. Сокол"]
[null,null,null,null,null,null,null,"г. Соль-Илецк"]
[null,null,null,null,null,null,null,"г. Сорск"]
[null,null,null,null,null,null,null,"г. Сосенский"]
[null,null,null,null,null,null,null,"г. Спасск-Дальний"]
[null,null,null,null,null,null,null,"г. Суворов"]
[null,null,null,null,null,null,null,"г. Суоярви"]
[null,null,null,null,null,null,null,"г. Сураж"]
[null,null,null,null,null,null,null,"г. Сясьстрой"]
[null,null,null,null,null,null,null,"г. Тайга"]
[null,null,null,null,null,null,null,"г. Таштагол"]
[null,null,null,null,null,null,null,"г. Тейково"]
[null,null,null,null,null,null,null,"г. Тольятти"]
[null,null,null,null,null,null,null,"г. Топки"]
[null,null,null,null,null,null,null,"г. Трехгорный"]
[null,null,null,null,null,null,null,"г. Тулун"]
[null,null,null,null,null,null,null,"г. Тутаев"]
[null,null,null,null,null,null,null,"г. Тында"]
[null,null,null,null,null,null,null,"г. Удачный"]
[null,null,null,null,null,null,null,"г. Удомля"]
[null,null,null,null,null,null,null,"г. Уржум"]
[null,null,null,null,null,null,null,"г. Усолье-Сибирское"]
[null,null,null,null,null,null,null,"г. Усть-Илимск"]
[null,null,null,null,null,null,null,"г. Усть-Катав"]
[null,null,null,null,null,null,null,"г. Учалы"]
[null,null,null,null,null,null,null,"г. Фокино"]
[null,null,null,null,null,null,null,"г. Фролово"]
[null,null,null,null,null,null,null,"г. Фурманов"]
[null,null,null,null,null,null,null,"г. Чапаевск"]
[null,null,null,null,null,null,null,"г. Чебаркуль"]
[null,null,null,null,null,null,null,"г. Черемхово"]
[null,null,null,null,null,null,null,"г. Череповец"]
[null,null,null,null,null,null,null,"г. Черногорск"]
[null,null,null,null,null,null,null,"г. Чистополь"]
[null,null,null,null,null,null,null,"г. Чусовой"]
[null,null,null,null,null,null,null,"г. Шелехов"]
[null,null,null,null,null,null,null,"г. Шумерля"]
[null,null,null,null,null,null,null,"г. Южа"]
[null,null,null,null,null,null,null,"г. Юрга"]
[null,null,null,null,null,null,null,"г. Яровое"]
[null,null,null,null,null,null,null,"г. Ясный"]
[null,null,null,null,null,null,null,"пос. Айхал"]
[null,null,null,null,null,null,null,"пос. Атяшево"]
[null,null,null,null,null,null,null,"пос. Белая Березка"]
[null,null,null,null,null,null,null,"пос. Белогорск"]
[null,null,null,null,null,null,null,"пос. Беринговский"]
[null,null,null,null,null,null,null,"пос. Бытошь"]
[null,null,null,null,null,null,null,"пос. Варгаши"]
[null,null,null,null,null,null,null,"пос. Великооктябрьский"]
[null,null,null,null,null,null,null,"пос. Вершина Теи"]
[null,null,null,null,null,null,null,"пос. Вершино-Дарасунский"]
[null,null,null,null,null,null,null,"пос. Восток"]
[null,null,null,null,null,null,null,"пос. Вяртсиля"]
[null,null,null,null,null,null,null,"пос. Горный"]
[null,null,null,null,null,null,null,"пос. Демьяново"]
[null,null,null,null,null,null,null,"пос. Елань-Коленовский"]
[null,null,null,null,null,null,null,"пос. Елатьма"]
[null,null,null,null,null,null,null,"пос. Жарковский"]
[null,null,null,null,null,null,null,"пос. Жешарт"]
[null,null,null,null,null,null,null,"пос. Жирекен"]
[null,null,null,null,null,null,null,"пос. Знаменка"]
[null,null,null,null,null,null,null,"пос. Ивот"]
[null,null,null,null,null,null,null,"пос. Кадошкино"]
[null,null,null,null,null,null,null,"пос. Калашниково"]
[null,null,null,null,null,null,null,"пос. Каменка"]
[null,null,null,null,null,null,null,"пос. Каменск"]
[null,null,null,null,null,null,null,"пос. Камские Поляны"]
[null,null,null,null,null,null,null,"пос. Кизема"]
[null,null,null,null,null,null,null,"пос. Кокуй"]
[null,null,null,null,null,null,null,"пос. Колобово"]
[null,null,null,null,null,null,null,"пос. Комсомольский"]
[null,null,null,null,null,null,null,"пос. Красная Поляна"]
[null,null,null,null,null,null,null,"пос. Краснобродский"]
[null,null,null,null,null,null,null,"пос. Краснофарфорный"]
[null,null,null,null,null,null,null,"пос. Красный Яр"]
[null,null,null,null,null,null,null,"пос. Лесной"]
[null,null,null,null,null,null,null,"пос. Линево"]
[null,null,null,null,null,null,null,"пос. Липовцы"]
[null,null,null,null,null,null,null,"пос. Лучегорск"]
[null,null,null,null,null,null,null,"пос. Любохна"]
[null,null,null,null,null,null,null,"пос. Малышева"]
[null,null,null,null,null,null,null,"пос. Медногорский"]
[null,null,null,null,null,null,null,"пос. Мокшан"]
[null,null,null,null,null,null,null,"пос. Мохсоголлох"]
[null,null,null,null,null,null,null,"пос. Муезерский"]
[null,null,null,null,null,null,null,"пос. Мундыбаш"]
[null,null,null,null,null,null,null,"пос. Мурыгино"]
[null,null,null,null,null,null,null,"пос. Мухтолово"]
[null,null,null,null,null,null,null,"пос. Надвоицы"]
[null,null,null,null,null,null,null,"пос. Нижний Куранах"]
[null,null,null,null,null,null,null,"пос. Никель"]
[null,null,null,null,null,null,null,"пос. Новоорловск"]
[null,null,null,null,null,null,null,"пос. Новопавловка"]
[null,null,null,null,null,null,null,"пос. Новошахтинский"]
[null,null,null,null,null,null,null,"пос. Октябрьский"]
[null,null,null,null,null,null,null,"пос. Парфино"]
[null,null,null,null,null,null,null,"пос. Пашия"]
[null,null,null,null,null,null,null,"пос. Первомайский"]
[null,null,null,null,null,null,null,"пос. Первомайский"]
[null,null,null,null,null,null,null,"пос. Песочное"]
[null,null,null,null,null,null,null,"пос. Петровский"]
[null,null,null,null,null,null,null,"пос. Пиндуши"]
[null,null,null,null,null,null,null,"пос. Побединка"]
[null,null,null,null,null,null,null,"пос. Погар"]
[null,null,null,null,null,null,null,"пос. Ревда"]
[null,null,null,null,null,null,null,"пос. Решетиха"]
[null,null,null,null,null,null,null,"пос. Савино"]
[null,null,null,null,null,null,null,"пос. Саган-Нур"]
[null,null,null,null,null,null,null,"пос. Сазоново"]
[null,null,null,null,null,null,null,"пос. Светлый"]
[null,null,null,null,null,null,null,"пос. Североонежск"]
[null,null,null,null,null,null,null,"пос. Селенгинск"]
[null,null,null,null,null,null,null,"пос. Силикатный"]
[null,null,null,null,null,null,null,"пос. Спирово"]
[null,null,null,null,null,null,null,"пос. Ставрово"]
[null,null,null,null,null,null,null,"пос. Степное Озеро"]
[null,null,null,null,null,null,null,"пос. Стрижи"]
[null,null,null,null,null,null,null,"пос. Теплая Гора"]
[null,null,null,null,null,null,null,"пос. Теплоозерск"]
[null,null,null,null,null,null,null,"пос. Тургенево"]
[null,null,null,null,null,null,null,"пос. Угловка"]
[null,null,null,null,null,null,null,"пос. Умет"]
[null,null,null,null,null,null,null,"пос. Уральский"]
[null,null,null,null,null,null,null,"пос. Чегдомын"]
[null,null,null,null,null,null,null,"пос. Шерегеш"]
[null,null,null,null,null,null,null,"пос. Шерловая Гора"]
[null,null,null,null,null,null,null,"пос. Эльбан"]
[null,null,null,null,null,null,null,"пос. Юго-Камский"]
[null,null,null,null,null,null,null,"пос. Ярославский"]
[null,null,null,null,null,null,null,"пос. Яшкино"]
[null,null,null,null,null,null,null,"с. Светлогорье"]
[null,null,null,null,null,null,null,"с. Туим"]